[Event "MCR rapid mládeže 2023 U16"]
[Site "Harachov, Czech Republic"]
[Date "2023.09.09"]
[Round "2.32"]
[White "Vo, Daniel"]
[Black "Fadrny, Jonas"]
[Result "1-0"]
[TimeControl "20min+5s/move"]
[WhiteElo "1445"]
[BlackElo "1096"]

1. e4 {[%clk 00:20:06]} {[%emt 00:00:02]} e5 {[%clk 00:20:07]} {[%emt
00:00:04]} 2. Nf3 {[%clk 00:20:09]} {[%emt 00:00:02]} Nc6 {[%clk 00:19:47]}
{[%emt 00:00:26]} 3. Bc4 {[%clk 00:20:06]} {[%emt 00:00:08]} Bc5 {[%clk
00:19:19]} {[%emt 00:00:31]} 4. c3 {[%clk 00:20:07]} {[%emt 00:00:04]} Nf6
{[%clk 00:18:33]} {[%emt 00:00:51]} 5. d4 {[%clk 00:20:00]} {[%emt 00:00:12]}
exd4 {[%clk 00:18:26]} {[%emt 00:00:12]} 6. cxd4 {[%clk 00:20:02]} {[%emt
00:00:04]} Bb4+ {[%clk 00:18:27]} {[%emt 00:00:04]} 7. Nc3 {[%clk 00:20:04]}
{[%emt 00:00:03]} Bxc3+ {[%clk 00:18:29]} {[%emt 00:00:03]} 8. bxc3 {[%clk
00:20:05]} {[%emt 00:00:04]} d6 {[%clk 00:18:09]} {[%emt 00:00:25]} 9. O-O
{[%emt 00:00:23]} Bg4 {[%clk 00:17:43]} {[%emt 00:00:28]} 10. Re1 {[%clk
00:19:23]} {[%emt 00:00:31]} O-O {[%clk 00:17:28]} {[%emt 00:00:20]} 11. h3
{[%clk 00:19:09]} {[%emt 00:00:19]} Bh5 {[%clk 00:17:27]} {[%emt 00:00:07]} 12.
Bg5 {[%clk 00:18:46]} {[%emt 00:00:26]} h6 {[%clk 00:17:16]} {[%emt 00:00:18]}
13. Bxf6 {[%clk 00:17:22]} {[%emt 00:01:29]} Qxf6 {[%clk 00:17:16]} {[%emt
00:00:04]} 14. Be2 {[%clk 00:17:02]} {[%emt 00:00:25]} Rfe8 {[%clk 00:17:09]}
{[%emt 00:00:11]} 15. Qc2 {[%clk 00:16:52]} {[%emt 00:00:15]} Bxf3 {[%clk
00:16:43]} {[%emt 00:00:32]} 16. Bxf3 {[%clk 00:16:51]} {[%emt 00:00:07]} Re7
{[%clk 00:16:07]} {[%emt 00:00:40]} 17. Rab1 {[%clk 00:16:46]} {[%emt
00:00:10]} Na5 {[%clk 00:15:28]} {[%emt 00:00:44]} 18. Qa4 {[%clk 00:16:08]}
{[%emt 00:00:43]} Nc6 {[%clk 00:13:57]} {[%emt 00:01:35]} 19. Rxb7 {[%clk
00:15:38]} {[%emt 00:00:37]} Nd8 {[%clk 00:13:28]} {[%emt 00:00:34]} 20. Rxa7
{[%clk 00:14:44]} {[%emt 00:00:59]} Rxa7 {[%clk 00:13:25]} {[%emt 00:00:08]} 21.
Qxa7 {[%clk 00:14:42]} {[%emt 00:00:07]} c5 {[%clk 00:12:43]} {[%emt 00:00:46]}
22. Qa5 {[%clk 00:14:31]} {[%emt 00:00:14]} Nb7 {[%clk 00:11:51]} {[%emt
00:00:59]} 23. Qb5 {[%clk 00:13:44]} {[%emt 00:00:52]} cxd4 {[%clk 00:11:37]}
{[%emt 00:00:20]} 24. e5 {[%clk 00:12:40]} {[%emt 00:01:09]} dxe5 {[%clk
00:10:53]} {[%emt 00:00:49]} 25. Bxb7 {[%clk 00:12:05]} {[%emt 00:00:40]} dxc3
{[%clk 00:10:41]} {[%emt 00:00:16]} 26. Be4 {[%clk 00:11:51]} {[%emt 00:00:18]}
g6 {[%clk 00:10:10]} {[%emt 00:00:38]} 27. Qc4 {[%clk 00:11:00]} {[%emt
00:00:55]} Ra7 {[%clk 00:09:33]} {[%emt 00:00:43]} 28. a4 {[%clk 00:09:59]}
{[%emt 00:01:07]} Qa6 {[%clk 00:08:04]} {[%emt 00:01:39]} 29. Qxc3 {[%clk
00:08:57]} {[%emt 00:01:10]} Qa5 {[%clk 00:07:24]} {[%emt 00:00:45]} 30. Qxa5
{[%clk 00:08:39]} {[%emt 00:00:23]} Rxa5 {[%clk 00:07:26]} {[%emt 00:00:04]} 31.
Bc6 {[%clk 00:08:40]} {[%emt 00:00:05]} f6 {[%clk 00:07:23]} {[%emt 00:00:07]}
32. Rd1 {[%clk 00:08:29]} {[%emt 00:00:15]} Kf7 {[%clk 00:07:10]} {[%emt
00:00:17]} 33. Bb5 {[%clk 00:07:53]} {[%emt 00:00:43]} Ke6 {[%clk 00:07:08]}
{[%emt 00:00:06]} 34. f3 {[%clk 00:07:41]} {[%emt 00:00:17]} g5 {[%clk
00:06:48]} {[%emt 00:00:25]} 35. Rc1 {[%clk 00:07:43]} {[%emt 00:00:03]} Kd6
{[%clk 00:06:33]} {[%emt 00:00:18]} 36. Rc6+ {[%clk 00:07:46]} {[%emt
00:00:05]} Ke7 {[%clk 00:06:35]} {[%emt 00:00:02]} 37. Rc7+ {[%clk 00:07:47]}
{[%emt 00:00:05]} Ke6 {[%clk 00:06:28]} {[%emt 00:00:12]} 38. Rh7 {[%clk
00:07:48]} {[%emt 00:00:04]} 1-0

[Event "MCR rapid mládeže 2023 U16"]
[Site "Harachov, Czech Republic"]
[Date "2023.09.09"]
[Round "2.33"]
[White "Zika, Miroslav"]
[Black "Vorlik, Jachym"]
[Result "0-1"]
[TimeControl "20min+5s/move"]
[WhiteElo "1199"]
[BlackElo "1210"]

1. c4 {[%clk 00:20:09]} c5 {[%clk 00:20:04]} {[%emt 00:00:06]} 2. Nf3 {[%clk
00:20:08]} {[%emt 00:00:05]} e6 {[%clk 00:20:03]} {[%emt 00:00:06]} 3. Nc3
{[%clk 00:20:10]} {[%emt 00:00:02]} Nf6 {[%clk 00:20:04]} {[%emt 00:00:04]} 4.
g3 {[%clk 00:20:12]} {[%emt 00:00:04]} d5 {[%clk 00:20:05]} {[%emt 00:00:04]} 5.
cxd5 {[%clk 00:20:11]} {[%emt 00:00:05]} Nxd5 {[%clk 00:20:06]} {[%emt
00:00:04]} 6. Bg2 {[%clk 00:20:13]} {[%emt 00:00:04]} Be7 {[%clk 00:20:03]}
{[%emt 00:00:09]} 7. O-O {[%clk 00:20:13]} {[%emt 00:00:04]} O-O {[%clk
00:20:05]} {[%emt 00:00:03]} 8. d3 {[%clk 00:20:12]} {[%emt 00:00:06]} Nc6
{[%clk 00:20:06]} {[%emt 00:00:04]} 9. Nxd5 {[%clk 00:19:56]} {[%emt 00:00:21]}
exd5 {[%clk 00:19:59]} {[%emt 00:00:12]} 10. Qb3 {[%clk 00:19:47]} {[%emt
00:00:13]} b6 {[%clk 00:18:59]} {[%emt 00:01:06]} 11. Ne1 {[%clk 00:19:40]}
{[%emt 00:00:13]} Be6 {[%clk 00:18:49]} {[%emt 00:00:15]} 12. Nc2 {[%clk
00:19:22]} {[%emt 00:00:22]} Bf6 {[%clk 00:17:53]} {[%emt 00:01:01]} 13. Bf4
{[%clk 00:19:09]} {[%emt 00:00:18]} d4 {[%clk 00:16:13]} {[%emt 00:01:45]} 14.
Qb5 {[%clk 00:19:03]} {[%emt 00:00:09]} Bd5 {[%clk 00:15:43]} {[%emt 00:00:37]}
15. Bxd5 {[%clk 00:18:37]} {[%emt 00:00:32]} Qxd5 {[%clk 00:15:40]} {[%emt
00:00:07]} 16. e4 {[%clk 00:18:27]} {[%emt 00:00:15]} Qd7 {[%clk 00:14:19]}
{[%emt 00:01:25]} 17. Na3 {[%clk 00:18:11]} {[%emt 00:00:23]} Qb7 {[%clk
00:13:41]} {[%emt 00:00:42]} 18. Nc4 {[%clk 00:17:58]} {[%emt 00:00:18]} Be7
{[%clk 00:12:49]} {[%emt 00:00:55]} 19. a3 {[%clk 00:16:54]} {[%emt 00:01:11]}
g5 {[%clk 00:12:01]} {[%emt 00:00:53]} 20. Bd2 {[%clk 00:16:39]} {[%emt
00:00:20]} Rab8 {[%clk 00:11:26]} {[%emt 00:00:40]} 21. Rfb1 {[%clk 00:15:34]}
{[%emt 00:01:10]} a6 {[%clk 00:11:07]} {[%emt 00:00:25]} 22. Qb3 {[%clk
00:15:30]} {[%emt 00:00:08]} Qc7 {[%clk 00:10:37]} {[%emt 00:00:35]} 23. Qd1
{[%clk 00:15:21]} {[%emt 00:00:14]} b5 {[%clk 00:10:23]} {[%emt 00:00:18]} 24.
b3 {[%clk 00:13:53]} {[%emt 00:01:33]} bxc4 {[%clk 00:10:13]} {[%emt 00:00:15]}
25. bxc4 {[%clk 00:13:56]} {[%emt 00:00:02]} Ne5 {[%clk 00:09:57]} {[%emt
00:00:21]} 26. Qe2 {[%clk 00:13:44]} {[%emt 00:00:18]} Rb6 {[%clk 00:09:15]}
{[%emt 00:00:47]} 27. f4 {[%clk 00:13:42]} {[%emt 00:00:07]} gxf4 {[%clk
00:08:29]} {[%emt 00:00:52]} 28. Bxf4 {[%clk 00:13:37]} {[%emt 00:00:09]} Bd6
{[%clk 00:08:22]} {[%emt 00:00:12]} 29. Qh5 {[%emt 00:00:55]} Ng6 {[%emt
00:00:49]} 30. e5 {[%clk 00:13:10]} {[%emt 00:00:03]} Rxb1+ {[%clk 00:07:03]}
{[%emt 00:00:18]} 31. Rxb1 {[%clk 00:13:11]} {[%emt 00:00:04]} Bxe5 {[%clk
00:06:53]} {[%emt 00:00:15]} 32. Bg5 {[%clk 00:12:22]} {[%emt 00:00:55]} Bg7
{[%clk 00:06:09]} {[%emt 00:00:49]} 33. Rf1 {[%clk 00:11:55]} {[%emt 00:00:32]}
Re8 {[%clk 00:05:56]} {[%emt 00:00:18]} 34. Bf4 {[%clk 00:11:18]} {[%emt
00:00:42]} Nxf4 {[%clk 00:05:45]} {[%emt 00:00:16]} 35. Rxf4 {[%clk 00:11:20]}
{[%emt 00:00:03]} Re1+ {[%clk 00:05:27]} {[%emt 00:00:23]} 36. Kg2 {[%clk
00:11:14]} {[%emt 00:00:11]} Re3 {[%clk 00:05:19]} {[%emt 00:00:11]} 37. Rg4
{[%clk 00:11:00]} {[%emt 00:00:20]} Rxd3 {[%clk 00:04:53]} {[%emt 00:00:32]} 38.
Qg5 {[%clk 00:10:51]} {[%emt 00:00:14]} f6 {[%clk 00:04:30]} {[%emt 00:00:28]}
39. Qd5+ {[%clk 00:10:27]} {[%emt 00:00:29]} Qf7 {[%clk 00:04:24]} {[%emt
00:00:09]} 40. Qd8+ {[%clk 00:10:16]} {[%emt 00:00:18]} Qf8 {[%clk 00:04:13]}
{[%emt 00:00:15]} 41. Qd5+ {[%clk 00:10:18]} {[%emt 00:00:04]} Kh8 {[%clk
00:04:06]} {[%emt 00:00:13]} 42. Rh4 {[%clk 00:10:11]} {[%emt 00:00:11]} Rd2+
{[%clk 00:03:58]} {[%emt 00:00:12]} 43. Kf3 {[%clk 00:10:05]} {[%emt 00:00:13]}
d3 {[%clk 00:03:35]} {[%emt 00:00:27]} 44. Qe4 {[%clk 00:09:57]} {[%emt
00:00:13]} f5 {[%clk 00:03:08]} {[%emt 00:00:32]} 45. Qe3 {[%clk 00:09:48]}
{[%emt 00:00:14]} Bc3 {[%clk 00:02:47]} {[%emt 00:00:26]} 46. Qe1 {[%clk
00:08:49]} {[%emt 00:01:03]} Rc2 {[%clk 00:02:21]} {[%emt 00:00:31]} 47. Qd1
{[%clk 00:08:11]} {[%emt 00:00:43]} Qd6 {[%clk 00:02:09]} {[%emt 00:00:17]} 48.
Qb1 {[%clk 00:07:43]} {[%emt 00:00:34]} d2 {[%clk 00:02:05]} {[%emt 00:00:09]}
49. Qb7 {[%clk 00:07:06]} {[%emt 00:00:41]} d1=Q+ {[%clk 00:02:04]} {[%emt
00:00:07]} 50. Ke3 {[%clk 00:06:56]} {[%emt 00:00:15]} Qe2# {[%emt 00:00:20]}
0-1

[Event "MCR rapid mládeže 2023 U16"]
[Site "Harachov, Czech Republic"]
[Date "2023.09.09"]
[Round "2.34"]
[White "Trejbal, Jindrich"]
[Black "Dlouhy, Martin"]
[Result "1/2-1/2"]
[TimeControl "20min+5s/move"]
[WhiteElo "1088"]
[BlackElo "1193"]

1. e4 {[%clk 00:19:56]} {[%emt 00:00:12]} c5 {[%clk 00:20:08]} {[%emt
00:00:03]} 2. Nf3 {[%clk 00:19:49]} {[%emt 00:00:12]} e6 {[%clk 00:20:11]}
{[%emt 00:00:03]} 3. d4 {[%clk 00:19:45]} {[%emt 00:00:09]} cxd4 {[%clk
00:20:15]} {[%emt 00:00:02]} 4. Qxd4 {[%clk 00:19:42]} {[%emt 00:00:07]} Nc6
{[%clk 00:20:15]} {[%emt 00:00:04]} 5. Qd1 {[%clk 00:19:18]} {[%emt 00:00:29]}
d6 {[%clk 00:20:10]} {[%emt 00:00:11]} 6. b3 {[%clk 00:18:45]} {[%emt
00:00:38]} Qf6 {[%clk 00:20:00]} {[%emt 00:00:15]} 7. c3 {[%clk 00:18:20]}
{[%emt 00:00:29]} Bd7 {[%clk 00:19:27]} {[%emt 00:00:38]} 8. Bb2 {[%clk
00:17:54]} {[%emt 00:00:32]} Be7 {[%clk 00:19:13]} {[%emt 00:00:19]} 9. Bc4
{[%clk 00:17:00]} {[%emt 00:00:59]} Qg6 {[%clk 00:19:00]} {[%emt 00:00:18]} 10.
Qd3 {[%clk 00:15:39]} {[%emt 00:01:26]} Qxg2 {[%clk 00:18:55]} {[%emt
00:00:10]} 11. Rg1 {[%clk 00:15:15]} {[%emt 00:00:28]} Qh3 {[%clk 00:18:35]}
{[%emt 00:00:26]} 12. Rxg7 {[%clk 00:14:19]} {[%emt 00:01:01]} Nf6 {[%clk
00:17:50]} {[%emt 00:00:50]} 13. Rg3 {[%clk 00:12:55]} {[%emt 00:01:28]} Qh6
{[%clk 00:17:17]} {[%emt 00:00:38]} 14. Nbd2 {[%clk 00:11:36]} {[%emt
00:01:25]} O-O-O {[%clk 00:17:08]} {[%emt 00:00:14]} 15. O-O-O {[%clk
00:10:16]} {[%emt 00:01:25]} Rhg8 {[%clk 00:16:59]} {[%emt 00:00:14]} 16. Rdg1
{[%clk 00:09:57]} {[%emt 00:00:24]} Rxg3 {[%clk 00:16:57]} {[%emt 00:00:07]} 17.
Rxg3 {[%clk 00:09:51]} {[%emt 00:00:11]} Rg8 {[%clk 00:16:54]} {[%emt
00:00:08]} 18. Bb5 {[%clk 00:08:37]} {[%emt 00:01:19]} Rxg3 {[%clk 00:16:53]}
{[%emt 00:00:05]} 19. hxg3 {[%clk 00:08:26]} {[%emt 00:00:17]} Qh1+ {[%clk
00:16:50]} {[%emt 00:00:08]} 20. Kc2 {[%clk 00:08:08]} {[%emt 00:00:23]} Qg2
{[%clk 00:16:41]} {[%emt 00:00:13]} 21. e5 {[%clk 00:06:29]} {[%emt 00:01:44]}
dxe5 {[%clk 00:16:13]} {[%emt 00:00:33]} 22. Bxc6 {[%clk 00:06:07]} {[%emt
00:00:28]} Bxc6 {[%clk 00:16:02]} {[%emt 00:00:15]} 23. Nxe5 {[%clk 00:06:03]}
{[%emt 00:00:09]} Be4 {[%clk 00:16:00]} {[%emt 00:00:08]} 24. Nxe4 {[%clk
00:06:06]} {[%emt 00:00:01]} Qxe4 {[%clk 00:16:03]} {[%emt 00:00:02]} 25. Qxe4
{[%clk 00:06:07]} {[%emt 00:00:04]} Nxe4 {[%clk 00:16:06]} {[%emt 00:00:02]} 26.
Nxf7 {[%clk 00:06:00]} {[%emt 00:00:11]} Nxf2 {[%clk 00:16:08]} {[%emt
00:00:04]} 27. Bc1 {[%clk 00:05:47]} {[%emt 00:00:19]} Ne4 {[%clk 00:15:59]}
{[%emt 00:00:12]} 28. g4 {[%clk 00:05:37]} {[%emt 00:00:17]} Kc7 {[%clk
00:15:50]} {[%emt 00:00:12]} 29. Bf4+ {[%clk 00:05:24]} {[%emt 00:00:19]} Nd6
{[%clk 00:15:34]} {[%emt 00:00:22]} 30. Nxd6 {[%clk 00:04:58]} {[%emt
00:00:32]} Bxd6 {[%clk 00:15:38]} {[%emt 00:00:01]} 31. Bxd6+ Kxd6 {[%clk
00:15:41]} 32. Kd2 {[%clk 00:04:56]} {[%emt 00:00:12]} Ke5 {[%clk 00:15:45]}
{[%emt 00:00:01]} 33. Ke3 {[%clk 00:04:59]} {[%emt 00:00:01]} a6 {[%clk
00:15:44]} {[%emt 00:00:06]} 34. a4 {[%clk 00:04:45]} {[%emt 00:00:19]} Kd6
{[%clk 00:15:42]} {[%emt 00:00:07]} 35. Kd4 {[%clk 00:04:45]} {[%emt 00:00:05]}
e5+ {[%clk 00:15:43]} {[%emt 00:00:04]} 36. Ke4 {[%clk 00:04:48]} {[%emt
00:00:01]} Ke6 {[%clk 00:15:47]} {[%emt 00:00:01]} 37. g5 {[%clk 00:04:47]}
{[%emt 00:00:07]} b6 {[%clk 00:15:49]} {[%emt 00:00:03]} 38. b4 {[%clk
00:04:25]} {[%emt 00:00:27]} b5 {[%clk 00:15:30]} {[%emt 00:00:25]} 39. a5
{[%clk 00:04:09]} {[%emt 00:00:21]} Kd6 {[%clk 00:15:27]} {[%emt 00:00:07]} 40.
Ke3 {[%clk 00:03:56]} {[%emt 00:00:19]} 1/2-1/2

[Event "MCR rapid mládeže 2023 U16"]
[Site "Harachov, Czech Republic"]
[Date "2023.09.09"]
[Round "2.35"]
[White "Zeman, Jonas"]
[Black "Berdnikov, Tsyren"]
[Result "1/2-1/2"]
[TimeControl "20min+5s/move"]
[WhiteElo "1130"]
[BlackElo "1027"]

1. e4 {[%clk 00:19:57]} {[%emt 00:00:11]} e5 {[%clk 00:20:10]} 2. Nc3 {[%clk
00:19:57]} d6 {[%clk 00:19:48]} {[%emt 00:00:34]} 3. Nf3 {[%clk 00:19:37]} Be6
{[%clk 00:19:40]} {[%emt 00:00:37]} 4. Be2 {[%clk 00:18:57]} g6 {[%clk
00:19:41]} {[%emt 00:00:49]} 5. d4 {[%clk 00:18:51]} exd4 {[%clk 00:19:07]}
{[%emt 00:00:26]} 6. Nxd4 Bg7 {[%clk 00:19:07]} {[%emt 00:00:17]} 7. Be3 {[%clk
00:18:48]} Ne7 {[%clk 00:18:28]} {[%emt 00:00:28]} 8. Qd2 {[%clk 00:18:38]} O-O
{[%clk 00:17:30]} {[%emt 00:01:01]} 9. O-O-O c5 {[%clk 00:17:30]} {[%emt
00:00:18]} 10. Ndb5 {[%clk 00:18:16]} a6 {[%clk 00:17:00]} {[%emt 00:01:08]} 11.
Nxd6 {[%clk 00:18:11]} Nd7 {[%clk 00:15:52]} {[%emt 00:01:34]} 12. h4 {[%clk
00:17:50]} f5 {[%clk 00:15:17]} {[%emt 00:01:19]} 13. h5 {[%clk 00:17:23]} gxh5
{[%clk 00:14:43]} {[%emt 00:01:10]} 14. Rxh5 {[%clk 00:17:03]} fxe4 {[%clk
00:14:41]} {[%emt 00:00:31]} 15. Rdh1 {[%clk 00:15:43]} Nf6 {[%clk 00:14:11]}
{[%emt 00:01:59]} 16. R5h2 {[%clk 00:12:23]} Bf7 {[%clk 00:13:49]} {[%emt
00:03:52]} 17. g4 {[%clk 00:10:12]} Bg6 {[%clk 00:13:28]} {[%emt 00:02:41]} 18.
f4 {[%clk 00:09:45]} exf3 {[%clk 00:13:30]} {[%emt 00:00:38]} 19. Bxf3 {[%clk
00:09:41]} Ne8 {[%clk 00:12:47]} {[%emt 00:00:46]} 20. Nxe8 {[%clk 00:07:13]}
Qxd2+ {[%clk 00:12:35]} {[%emt 00:02:59]} 21. Bxd2 {[%clk 00:07:15]} Rxf3
{[%clk 00:12:10]} {[%emt 00:00:35]} 22. Nxg7 {[%clk 00:06:59]} Kxg7 {[%emt
00:01:19]} 23. Re1 {[%clk 00:06:37]} Nc6 {[%clk 00:11:20]} {[%emt 00:00:29]} 24.
Ne4 {[%clk 00:05:32]} Re8 {[%clk 00:10:46]} {[%emt 00:01:49]} 25. Nxc5 {[%clk
00:03:30]} Rxe1+ {[%clk 00:10:48]} {[%emt 00:02:10]} 26. Bxe1 {[%clk 00:03:14]}
Rf1 {[%clk 00:10:44]} 27. Kd2 {[%clk 00:02:38]} {[%emt 00:00:48]} Nd4 {[%clk
00:10:36]} 28. Rf2 {[%clk 00:02:38]} Nf3+ {[%clk 00:10:36]} {[%emt 00:00:36]}
29. Ke2 {[%clk 00:02:17]} Rxe1+ {[%clk 00:10:10]} {[%emt 00:00:56]} 30. Kxf3
{[%emt 00:00:13]} Rb1 {[%clk 00:10:05]} 31. c3 {[%clk 00:02:09]} {[%emt
00:00:16]} Ra1 {[%clk 00:10:03]} {[%emt 00:00:07]} 32. a3 {[%clk 00:02:03]} b6
{[%clk 00:09:40]} {[%emt 00:00:40]} 33. Nxa6 {[%clk 00:02:06]} Bd3 {[%clk
00:09:37]} {[%emt 00:00:10]} 34. Nb4 {[%clk 00:02:04]} {[%emt 00:00:07]} Bc4
{[%clk 00:09:28]} {[%emt 00:00:13]} 35. Rd2 {[%clk 00:01:08]} {[%emt 00:01:01]}
Rf1+ {[%clk 00:09:27]} {[%emt 00:00:06]} 36. Ke3 {[%clk 00:01:05]} {[%emt
00:00:08]} Rg1 {[%clk 00:09:23]} {[%emt 00:00:09]} 37. Kf4 {[%clk 00:00:27]}
{[%emt 00:00:43]} Be6 {[%clk 00:09:23]} {[%emt 00:00:05]} 38. g5 {[%clk
00:00:29]} {[%emt 00:00:03]} Kg6 {[%clk 00:09:22]} {[%emt 00:00:06]} 39. Ke5
{[%clk 00:00:22]} {[%emt 00:00:12]} Bf7 {[%clk 00:09:10]} {[%emt 00:00:16]} 40.
Kd6 {[%clk 00:00:21]} {[%emt 00:00:06]} Rxg5 {[%clk 00:09:12]} {[%emt
00:00:04]} 41. Kc6 {[%clk 00:00:15]} {[%emt 00:00:12]} b5 {[%clk 00:09:05]}
{[%emt 00:00:11]} 42. Nd5 {[%clk 00:00:13]} Be8+ {[%clk 00:09:03]} {[%emt
00:00:14]} 43. Kc5 {[%clk 00:00:16]} h5 {[%clk 00:09:01]} {[%emt 00:00:09]} 44.
Kb4 {[%clk 00:00:16]} {[%emt 00:00:05]} h4 {[%clk 00:08:57]} {[%emt 00:00:09]}
45. Nf4+ {[%clk 00:00:18]} {[%emt 00:00:03]} Kf5 {[%clk 00:08:58]} {[%emt
00:00:04]} 46. Nd3 {[%clk 00:00:17]} {[%emt 00:00:06]} Rg4+ {[%clk 00:08:58]}
{[%emt 00:00:06]} 47. Ka5 {[%clk 00:00:09]} Ra4+ {[%clk 00:09:00]} {[%emt
00:00:15]} 48. Kb6 {[%clk 00:00:12]} h3 {[%clk 00:08:57]} {[%emt 00:00:10]} 49.
Rh2 {[%clk 00:00:13]} Kg4 {[%clk 00:08:57]} {[%emt 00:00:09]} 50. Nf2+ {[%clk
00:00:16]} Kg3 {[%clk 00:09:00]} {[%emt 00:00:04]} 51. Rxh3+ {[%clk 00:00:19]}
Kxf2 {[%clk 00:09:00]} {[%emt 00:00:07]} 52. Rh8 {[%clk 00:00:21]} Bd7 {[%clk
00:09:00]} {[%emt 00:00:09]} 53. Rf8+ {[%clk 00:00:24]} Ke2 {[%clk 00:09:02]}
{[%emt 00:00:05]} 54. Rd8 {[%clk 00:00:25]} Bf5 {[%clk 00:08:47]} {[%emt
00:00:23]} 55. Rd5 {[%clk 00:00:28]} Be4 {[%clk 00:08:47]} {[%emt 00:00:08]} 56.
Rxb5 {[%clk 00:00:30]} Kd2 {[%clk 00:08:42]} {[%emt 00:00:12]} 57. Rb4 {[%clk
00:00:33]} {[%emt 00:00:03]} Rxb4+ {[%clk 00:08:27]} {[%emt 00:00:20]} 58. axb4
{[%clk 00:00:36]} {[%emt 00:00:02]} Kc2 {[%clk 00:08:29]} {[%emt 00:00:03]} 59.
c4 {[%clk 00:00:38]} {[%emt 00:00:03]} Kb3 {[%clk 00:08:29]} {[%emt 00:00:05]}
60. c5 {[%clk 00:00:09]} {[%emt 00:00:33]} Kxb4 {[%clk 00:08:31]} {[%emt
00:00:04]} 61. c6 {[%clk 00:00:12]} {[%emt 00:00:02]} Bxc6 {[%clk 00:08:33]}
{[%emt 00:00:03]} 62. Kxc6 {[%clk 00:00:15]} {[%emt 00:00:02]} 1/2-1/2

[Event "MCR rapid mládeže 2023 U16"]
[Site "Harachov, Czech Republic"]
[Date "2023.09.09"]
[Round "2.36"]
[White "Mauric, Jan"]
[Black "Zelenka, Tomas"]
[Result "1-0"]
[TimeControl "20min+5s/move"]
[WhiteElo "1260"]
[BlackElo "1457"]

1. d4 {[%clk 00:20:08]} {[%emt 00:00:02]} d5 {[%clk 00:20:08]} {[%emt
00:00:02]} 2. Bf4 {[%clk 00:20:10]} {[%emt 00:00:03]} Nf6 {[%clk 00:20:05]}
{[%emt 00:00:07]} 3. Nf3 {[%clk 00:20:05]} {[%emt 00:00:11]} Bf5 {[%clk
00:20:03]} {[%emt 00:00:07]} 4. e3 {[%clk 00:20:08]} {[%emt 00:00:02]} e6
{[%clk 00:20:02]} {[%emt 00:00:06]} 5. c3 {[%clk 00:20:08]} {[%emt 00:00:05]}
c5 {[%clk 00:20:03]} {[%emt 00:00:04]} 6. Bd3 {[%clk 00:19:42]} {[%emt
00:00:32]} Bg6 {[%clk 00:20:02]} {[%emt 00:00:05]} 7. Bxb8 {[%clk 00:19:01]}
{[%emt 00:00:46]} Rxb8 {[%clk 00:19:56]} {[%emt 00:00:11]} 8. Bb5+ {[%clk
00:19:04]} {[%emt 00:00:02]} Nd7 {[%clk 00:19:39]} {[%emt 00:00:22]} 9. Ne5
{[%clk 00:19:06]} {[%emt 00:00:02]} f6 {[%clk 00:18:43]} {[%emt 00:01:01]} 10.
Nxd7 {[%clk 00:19:09]} {[%emt 00:00:03]} a6 {[%clk 00:18:46]} {[%emt 00:00:02]}
11. Nxb8+ {[%clk 00:19:10]} {[%emt 00:00:04]} axb5 {[%clk 00:18:48]} {[%emt
00:00:03]} 12. Qb3 {[%clk 00:17:46]} {[%emt 00:01:29]} b4 {[%clk 00:18:16]}
{[%emt 00:00:37]} 13. Qa4+ {[%clk 00:17:41]} {[%emt 00:00:10]} Ke7 {[%clk
00:18:17]} {[%emt 00:00:03]} 14. Nc6+ {[%clk 00:17:33]} {[%emt 00:00:13]} bxc6
{[%clk 00:18:16]} {[%emt 00:00:07]} 15. Qxc6 {[%clk 00:17:35]} {[%emt
00:00:03]} Kf7 {[%clk 00:17:36]} {[%emt 00:00:43]} 16. dxc5 {[%clk 00:17:14]}
{[%emt 00:00:28]} bxc3 {[%clk 00:17:23]} {[%emt 00:00:17]} 17. Nxc3 {[%clk
00:17:10]} {[%emt 00:00:10]} Qa5 {[%clk 00:17:22]} {[%emt 00:00:04]} 18. O-O
{[%clk 00:16:26]} {[%emt 00:00:52]} Bxc5 {[%clk 00:17:19]} {[%emt 00:00:08]} 19.
Qb7+ {[%clk 00:16:05]} {[%emt 00:00:25]} Be7 {[%clk 00:17:16]} {[%emt
00:00:07]} 20. a3 {[%clk 00:14:16]} {[%emt 00:01:55]} Rf8 {[%clk 00:17:02]}
{[%emt 00:00:16]} 21. b4 {[%clk 00:14:05]} {[%emt 00:00:18]} Qd8 {[%clk
00:17:05]} {[%emt 00:00:02]} 22. a4 {[%clk 00:13:14]} {[%emt 00:00:56]} Kg8
{[%clk 00:16:59]} {[%emt 00:00:10]} 23. a5 {[%clk 00:12:59]} {[%emt 00:00:21]}
Qd6 {[%clk 00:16:52]} {[%emt 00:00:11]} 24. b5 {[%clk 00:08:54]} {[%emt
00:04:11]} Qe5 {[%clk 00:16:27]} {[%emt 00:00:19]} 25. Qxe7 {[%clk 00:08:29]}
{[%emt 00:00:40]} Qxc3 {[%clk 00:16:28]} {[%emt 00:00:02]} 26. Rfc1 {[%clk
00:07:30]} {[%emt 00:01:05]} Qb2 {[%clk 00:16:13]} {[%emt 00:00:17]} 27. b6
{[%clk 00:07:10]} {[%emt 00:00:29]} Re8 {[%clk 00:14:38]} {[%emt 00:01:38]} 28.
Qc7 {[%clk 00:06:48]} {[%emt 00:00:27]} Qb4 {[%clk 00:13:35]} {[%emt 00:01:04]}
29. b7 {[%clk 00:06:40]} {[%emt 00:00:18]} Re7 {[%clk 00:13:07]} {[%emt
00:00:33]} 30. b8=Q+ {[%clk 00:06:08]} {[%emt 00:00:38]} 1-0